[Event "Late-Titled-Tuesday-Blitz-April-23-2024"]
[Site "Chess.com"]
[Date "2024.04.23"]
[Round "7"]
[White "Heliosis11"]
[Black "ilushka"]
[Result "0-1"]
[WhiteElo "2394"]
[BlackElo "2546"]
[TimeControl "180+1"]
[EndTime "15:19:39 PDT"]
[Termination "ilushka won by resignation"]

1. e4 {[%clk 0:03:00.9]} 1... e6 {[%clk 0:03:00.5]} 2. d4 {[%clk 0:03:00.1]}
2... d5 {[%clk 0:03:01.4]} 3. Nc3 {[%clk 0:03:00.7]} 3... Nf6 {[%clk 0:03:01.4]}
4. e5 {[%clk 0:03:00.9]} 4... Nfd7 {[%clk 0:03:01.6]} 5. f4 {[%clk 0:03:01.4]}
5... c5 {[%clk 0:03:02.2]} 6. Nf3 {[%clk 0:02:54.5]} 6... a6 {[%clk 0:03:02.4]}
7. Be3 {[%clk 0:02:50.5]} 7... Qb6 {[%clk 0:03:02.9]} 8. Qd2 {[%clk 0:02:38.6]}
8... Qxb2 {[%clk 0:03:02.5]} 9. Rb1 {[%clk 0:02:36.9]} 9... Qa3 {[%clk
0:03:02.5]} 10. Be2 {[%clk 0:02:28.4]} 10... Nc6 {[%clk 0:03:01.3]} 11. O-O
{[%clk 0:02:24.7]} 11... cxd4 {[%clk 0:03:01.2]} 12. Nxd4 {[%clk 0:02:13.1]}
12... Nxd4 {[%clk 0:03:01.1]} 13. Bxd4 {[%clk 0:02:14]} 13... Bc5 {[%clk
0:03:01]} 14. Rb3 {[%clk 0:02:12.5]} 14... Bxd4+ {[%clk 0:03:00.2]} 15. Qxd4
{[%clk 0:02:13.4]} 15... Qc5 {[%clk 0:03:00.3]} 16. Qxc5 {[%clk 0:02:09.7]}
16... Nxc5 {[%clk 0:03:01.2]} 17. Rbb1 {[%clk 0:02:10.4]} 17... O-O {[%clk
0:02:58.1]} 18. f5 {[%clk 0:01:56.1]} 18... Bd7 {[%clk 0:02:56]} 19. fxe6 {[%clk
0:01:54.3]} 19... fxe6 {[%clk 0:02:56.8]} 20. Bf3 {[%clk 0:01:41.3]} 20... Rac8
{[%clk 0:02:47.9]} 21. Rfd1 {[%clk 0:01:34]} 21... Bc6 {[%clk 0:02:45]} 22. Ne2
{[%clk 0:01:31.2]} 22... Nd7 {[%clk 0:02:22.4]} 23. Nd4 {[%clk 0:01:24.9]} 23...
Nxe5 {[%clk 0:02:22.6]} 24. Re1 {[%clk 0:01:14.7]} 24... Nxf3+ {[%clk 0:02:23]}
25. gxf3 {[%clk 0:01:15.6]} 25... Rce8 {[%clk 0:02:01.2]} 26. Kg2 {[%clk
0:01:09.7]} 26... Rf4 {[%clk 0:01:12.7]} 27. c3 {[%clk 0:00:48.9]} 27... e5
{[%clk 0:01:09.7]} 28. Nxc6 {[%clk 0:00:43.6]} 28... bxc6 {[%clk 0:01:10.6]} 29.
Rb6 {[%clk 0:00:43.5]} 29... Rc4 {[%clk 0:01:06.2]} 30. Re3 {[%clk 0:00:40.3]}
30... a5 {[%clk 0:00:53.8]} 31. f4 {[%clk 0:00:28.9]} 31... e4 {[%clk
0:00:48.8]} 32. Kg3 {[%clk 0:00:25]} 32... h6 {[%clk 0:00:47.1]} 33. Ra6 {[%clk
0:00:25]} 33... a4 {[%clk 0:00:46.8]} 34. a3 {[%clk 0:00:23.5]} 34... Rb8 {[%clk
0:00:46.2]} 35. f5 {[%clk 0:00:20]} 35... Rb3 {[%clk 0:00:43.9]} 36. Kf4 {[%clk
0:00:18.5]} 36... Rbxc3 {[%clk 0:00:37.5]} 37. Rxc3 {[%clk 0:00:16.5]} 37...
Rxc3 {[%clk 0:00:37.5]} 38. Rxa4 {[%clk 0:00:17.4]} 38... Rf3+ {[%clk
0:00:35.3]} 39. Kg4 {[%clk 0:00:17.2]} 39... Kf7 {[%clk 0:00:33.9]} 40. Ra6
{[%clk 0:00:16.9]} 40... c5 {[%clk 0:00:31.4]} 41. Rc6 {[%clk 0:00:16.6]} 41...
c4 {[%clk 0:00:31.2]} 42. Rc5 {[%clk 0:00:16.7]} 42... Rd3 {[%clk 0:00:29.9]}
43. a4 {[%clk 0:00:17]} 43... Ke7 {[%clk 0:00:15.8]} 44. Rc7+ {[%clk 0:00:11.6]}
44... Kd6 {[%clk 0:00:15.4]} 45. Rxg7 {[%clk 0:00:11.5]} 45... Ra3 {[%clk
0:00:15.3]} 46. Kf4 {[%clk 0:00:08.2]} 46... Rxa4 {[%clk 0:00:15.1]} 47. Rg6+
{[%clk 0:00:07.5]} 47... Kc5 {[%clk 0:00:14.5]} 48. Rxh6 {[%clk 0:00:08.1]}
48... c3 {[%clk 0:00:14.9]} 49. Rh8 {[%clk 0:00:08.5]} 49... Rc4 {[%clk
0:00:14.6]} 50. f6 {[%clk 0:00:08.1]} 50... c2 {[%clk 0:00:14.3]} 51. Rc8+
{[%clk 0:00:08.4]} 51... Kd6 {[%clk 0:00:14.5]} 0-1

[Event "Late-Titled-Tuesday-Blitz-April-23-2024"]
[Site "Chess.com"]
[Date "2024.04.23"]
[Round "7"]
[White "dropstoneDP"]
[Black "RealPerangel"]
[Result "1/2-1/2"]
[WhiteElo "3000"]
[BlackElo "2714"]
[TimeControl "180+1"]
[EndTime "15:19:40 PDT"]
[Termination "Game drawn by agreement"]

1. e4 {[%clk 0:03:00.9]} 1... d5 {[%clk 0:02:41]} 2. exd5 {[%clk 0:02:59.9]}
2... Qxd5 {[%clk 0:02:39.3]} 3. Nc3 {[%clk 0:03:00.2]} 3... Qa5 {[%clk 0:02:36]}
4. d4 {[%clk 0:03:00.7]} 4... Nf6 {[%clk 0:02:35.3]} 5. Nf3 {[%clk 0:03:01.2]}
5... Bg4 {[%clk 0:02:34.5]} 6. h3 {[%clk 0:03:00.8]} 6... Bxf3 {[%clk
0:02:34.3]} 7. Qxf3 {[%clk 0:03:00.7]} 7... c6 {[%clk 0:02:34]} 8. Bd2 {[%clk
0:03:00.3]} 8... Nbd7 {[%clk 0:02:33.4]} 9. Bc4 {[%clk 0:02:57.8]} 9... e6
{[%clk 0:02:30.8]} 10. Nd5 {[%clk 0:02:57.2]} 10... Qd8 {[%clk 0:02:28.5]} 11.
Nxf6+ {[%clk 0:02:56.6]} 11... Nxf6 {[%clk 0:02:26.5]} 12. c3 {[%clk 0:02:56.6]}
12... Be7 {[%clk 0:02:16.5]} 13. O-O {[%clk 0:02:53.4]} 13... O-O {[%clk
0:01:57.7]} 14. g3 {[%clk 0:02:53.8]} 14... Rc8 {[%clk 0:01:40.6]} 15. Rfd1
{[%clk 0:02:52.3]} 15... Qc7 {[%clk 0:01:36.7]} 16. a4 {[%clk 0:02:51.7]} 16...
Rfd8 {[%clk 0:01:25.8]} 17. a5 {[%clk 0:02:48.6]} 17... c5 {[%clk 0:01:22.2]}
18. Bf4 {[%clk 0:02:49.1]} 18... Bd6 {[%clk 0:01:18.8]} 19. Bxd6 {[%clk
0:02:49]} 19... Rxd6 {[%clk 0:01:17.3]} 20. dxc5 {[%clk 0:02:47.3]} 20... Qxc5
{[%clk 0:01:14.8]} 21. Rxd6 {[%clk 0:02:44.3]} 21... Qxd6 {[%clk 0:01:13.8]} 22.
Rd1 {[%clk 0:02:41.8]} 22... Qc7 {[%clk 0:01:12.4]} 23. Bf1 {[%clk 0:02:37.9]}
23... Rb8 {[%clk 0:01:07.2]} 24. Ra1 {[%clk 0:02:12.2]} 24... a6 {[%clk
0:01:03.8]} 25. Bg2 {[%clk 0:02:12.4]} 25... h5 {[%clk 0:00:59.8]} 26. Ra4
{[%clk 0:02:06.6]} 26... Qc5 {[%clk 0:00:46.9]} 27. Qe3 {[%clk 0:01:51.9]} 27...
Qc7 {[%clk 0:00:36.1]} 28. Qf4 {[%clk 0:01:45.7]} 28... e5 {[%clk 0:00:35.4]}
29. Qf5 {[%clk 0:01:41.7]} 29... Re8 {[%clk 0:00:31.8]} 30. Bf3 {[%clk
0:01:20.2]} 30... Re6 {[%clk 0:00:28.8]} 31. Rb4 {[%clk 0:01:16.8]} 31... g6
{[%clk 0:00:26.6]} 32. Qd3 {[%clk 0:00:35.7]} 32... Qxa5 {[%clk 0:00:23.6]} 33.
Bxb7 {[%clk 0:00:36.3]} 33... Kg7 {[%clk 0:00:22.6]} 34. Kg2 {[%clk 0:00:36.1]}
34... Qa1 {[%clk 0:00:17.4]} 35. Qc2 {[%clk 0:00:25]} 35... Qa5 {[%clk
0:00:15.7]} 36. Bf3 {[%clk 0:00:24.3]} 36... Qc5 {[%clk 0:00:14.8]} 37. Qd3
{[%clk 0:00:23.1]} 37... a5 {[%clk 0:00:15.1]} 38. Rb5 {[%clk 0:00:22.3]} 38...
Qc7 {[%clk 0:00:14.9]} 39. Bd5 {[%clk 0:00:21.9]} 39... Rd6 {[%clk 0:00:14.6]}
40. c4 {[%clk 0:00:21.4]} 40... a4 {[%clk 0:00:14.6]} 41. Qe3 {[%clk 0:00:15.9]}
41... Rd8 {[%clk 0:00:13.8]} 42. Qc3 {[%clk 0:00:03.9]} 42... Nxd5 {[%clk
0:00:12.1]} 43. cxd5 {[%clk 0:00:03.3]} 43... Qxc3 {[%clk 0:00:11.7]} 44. bxc3
{[%clk 0:00:04.2]} 44... Rc8 {[%clk 0:00:11.5]} 45. d6 {[%clk 0:00:03.2]} 45...
a3 {[%clk 0:00:10]} 46. Ra5 {[%clk 0:00:02]} 46... Rxc3 {[%clk 0:00:08.8]} 47.
Rxe5 {[%clk 0:00:02.6]} 47... Rd3 {[%clk 0:00:08.8]} 48. Ra5 {[%clk 0:00:03.2]}
48... Rxd6 {[%clk 0:00:09.4]} 49. Rxa3 {[%clk 0:00:03.3]} 49... Re6 {[%clk
0:00:10]} 50. h4 {[%clk 0:00:03.8]} 50... Rf6 {[%clk 0:00:10.4]} 51. Rf3 {[%clk
0:00:03.6]} 1/2-1/2

[Event "Late-Titled-Tuesday-Blitz-April-23-2024"]
[Site "Chess.com"]
[Date "2024.04.23"]
[Round "7"]
[White "IraZyne"]
[Black "Francisco_Ferrari"]
[Result "1-0"]
[WhiteElo "2338"]
[BlackElo "2191"]
[TimeControl "180+1"]
[EndTime "15:19:40 PDT"]
[Termination "IraZyne won by resignation"]

1. e4 {[%clk 0:02:41]} 1... c5 {[%clk 0:02:55.8]} 2. Nc3 {[%clk 0:02:40.3]} 2...
d6 {[%clk 0:02:52.9]} 3. g3 {[%clk 0:02:40.3]} 3... Nc6 {[%clk 0:02:51.2]} 4.
Bg2 {[%clk 0:02:40.5]} 4... g6 {[%clk 0:02:51.6]} 5. Nge2 {[%clk 0:02:38.8]}
5... Bg7 {[%clk 0:02:51.8]} 6. O-O {[%clk 0:02:38.5]} 6... Rb8 {[%clk
0:02:46.8]} 7. d3 {[%clk 0:02:37.7]} 7... Nf6 {[%clk 0:02:43.3]} 8. h3 {[%clk
0:02:36.6]} 8... O-O {[%clk 0:02:42.3]} 9. f4 {[%clk 0:02:35.4]} 9... Nd7 {[%clk
0:02:41.3]} 10. Be3 {[%clk 0:02:33.7]} 10... b5 {[%clk 0:02:41.3]} 11. Qd2
{[%clk 0:02:33.7]} 11... b4 {[%clk 0:02:36.9]} 12. Nd1 {[%clk 0:02:33.6]} 12...
Nd4 {[%clk 0:02:32.6]} 13. g4 {[%clk 0:02:31]} 13... a5 {[%clk 0:02:19.4]} 14.
f5 {[%clk 0:02:29.9]} 14... a4 {[%clk 0:02:13.3]} 15. Rb1 {[%clk 0:02:27.3]}
15... Ba6 {[%clk 0:01:51.8]} 16. Nf2 {[%clk 0:02:20.7]} 16... b3 {[%clk
0:01:34.9]} 17. axb3 {[%clk 0:02:17.4]} 17... axb3 {[%clk 0:01:35.8]} 18. c3
{[%clk 0:02:16.8]} 18... Nxe2+ {[%clk 0:01:24.7]} 19. Qxe2 {[%clk 0:02:16.7]}
19... Ne5 {[%clk 0:01:13.6]} 20. Ra1 {[%clk 0:02:05.5]} 20... Bb5 {[%clk
0:01:11.6]} 21. Ra3 {[%clk 0:02:02.8]} 21... Qc7 {[%clk 0:00:53.7]} 22. Rfa1
{[%clk 0:01:52.6]} 22... c4 {[%clk 0:00:52.1]} 23. d4 {[%clk 0:01:52.1]} 23...
Nd3 {[%clk 0:00:52.6]} 24. Qd2 {[%clk 0:01:43.8]} 24... Nxf2 {[%clk 0:00:44.4]}
25. Kxf2 {[%clk 0:01:42]} 25... e6 {[%clk 0:00:44.6]} 26. Ra7 {[%clk 0:01:38.3]}
26... Qd8 {[%clk 0:00:41.3]} 27. Bg5 {[%clk 0:01:32.6]} 27... Bf6 {[%clk
0:00:41.6]} 28. Bxf6 {[%clk 0:01:30.9]} 28... Qxf6 {[%clk 0:00:42.3]} 29. Kg3
{[%clk 0:01:26]} 29... gxf5 {[%clk 0:00:38]} 30. exf5 {[%clk 0:01:25.2]} 30...
e5 {[%clk 0:00:27.3]} 31. Rd1 {[%clk 0:01:15.4]} 31... Rfe8 {[%clk 0:00:22.8]}
32. Bf3 {[%clk 0:01:11.7]} 32... e4 {[%clk 0:00:21.2]} 33. Bg2 {[%clk
0:01:09.2]} 33... d5 {[%clk 0:00:20.1]} 34. Qf4 {[%clk 0:01:07.2]} 34... Rbd8
{[%clk 0:00:20.3]} 35. g5 {[%clk 0:01:03.4]} 35... Qd6 {[%clk 0:00:20.5]} 36.
Qxd6 {[%clk 0:01:01.3]} 36... Rxd6 {[%clk 0:00:21.4]} 37. Kf4 {[%clk 0:01:00.9]}
37... Kg7 {[%clk 0:00:21]} 38. Rb7 {[%clk 0:00:58.7]} 38... Bc6 {[%clk
0:00:19.9]} 39. Rc7 {[%clk 0:00:58.1]} 39... Ra8 {[%clk 0:00:19.8]} 40. Rd2
{[%clk 0:00:57.1]} 40... Re8 {[%clk 0:00:15.8]} 41. Re2 {[%clk 0:00:56.4]} 41...
Bb5 {[%clk 0:00:13.6]} 42. h4 {[%clk 0:00:55.8]} 42... h6 {[%clk 0:00:13]} 43.
g6 {[%clk 0:00:51.7]} 43... Rd7 {[%clk 0:00:10.5]} 44. Rxd7 {[%clk 0:00:49.9]}
44... Bxd7 {[%clk 0:00:11.4]} 45. h5 {[%clk 0:00:48.6]} 45... fxg6 {[%clk
0:00:10.1]} 46. fxg6 {[%clk 0:00:47.6]} 46... Rf8+ {[%clk 0:00:10.4]} 47. Ke5
{[%clk 0:00:47.5]} 47... Rf5+ {[%clk 0:00:09.8]} 48. Kd6 {[%clk 0:00:45.9]}
48... Be8 {[%clk 0:00:10.2]} 49. Bh3 {[%clk 0:00:39.3]} 49... Rxh5 {[%clk
0:00:10.3]} 50. Be6 {[%clk 0:00:39.1]} 50... Bxg6 {[%clk 0:00:10.2]} 51. Bxd5
{[%clk 0:00:39.1]} 51... Rh3 {[%clk 0:00:04.6]} 52. Bxc4 {[%clk 0:00:38.4]}
52... Rg3 {[%clk 0:00:03.5]} 53. Bxb3 {[%clk 0:00:37.4]} 53... h5 {[%clk
0:00:04.1]} 54. Bd5 {[%clk 0:00:35.7]} 54... h4 {[%clk 0:00:04.5]} 55. Bxe4
{[%clk 0:00:35.5]} 55... h3 {[%clk 0:00:05]} 56. Bh1 {[%clk 0:00:29.7]} 56...
Rg1 {[%clk 0:00:03.8]} 57. Rh2 {[%clk 0:00:29.4]} 57... Bf5 {[%clk 0:00:03.5]}
58. Ke5 {[%clk 0:00:27.9]} 58... Rb1 {[%clk 0:00:04.4]} 59. Kxf5 {[%clk
0:00:27.3]} 1-0

[Event "Late-Titled-Tuesday-Blitz-April-23-2024"]
[Site "Chess.com"]
[Date "2024.04.23"]
[Round "7"]
[White "Oleksandr_Bortnyk"]
[Black "artin10862"]
[Result "1-0"]
[WhiteElo "3117"]
[BlackElo "2932"]
[TimeControl "180+1"]
[EndTime "15:19:41 PDT"]
[Termination "Oleksandr_Bortnyk won by resignation"]

1. e4 {[%clk 0:03:00.9]} 1... e5 {[%clk 0:02:59.6]} 2. Bc4 {[%clk 0:02:57.8]}
2... Nf6 {[%clk 0:02:58.7]} 3. d3 {[%clk 0:02:58.4]} 3... Nc6 {[%clk 0:02:58.6]}
4. Nc3 {[%clk 0:02:56.8]} 4... Na5 {[%clk 0:02:58.4]} 5. Nge2 {[%clk 0:02:55.8]}
5... Nxc4 {[%clk 0:02:44.6]} 6. dxc4 {[%clk 0:02:56.7]} 6... Be7 {[%clk
0:02:44.9]} 7. O-O {[%clk 0:02:55.8]} 7... O-O {[%clk 0:02:43.2]} 8. Ng3 {[%clk
0:02:52.8]} 8... d6 {[%clk 0:02:41.8]} 9. h3 {[%clk 0:02:52.9]} 9... Be6 {[%clk
0:02:34.5]} 10. Qe2 {[%clk 0:02:52.4]} 10... Nd7 {[%clk 0:02:27.8]} 11. Nd5
{[%clk 0:02:49.9]} 11... Bxd5 {[%clk 0:02:25.5]} 12. cxd5 {[%clk 0:02:49.9]}
12... Bg5 {[%clk 0:02:26.1]} 13. c4 {[%clk 0:02:37.4]} 13... Bxc1 {[%clk
0:02:24.1]} 14. Raxc1 {[%clk 0:02:38.3]} 14... a5 {[%clk 0:02:20.5]} 15. b3
{[%clk 0:02:38.8]} 15... Nc5 {[%clk 0:02:16.7]} 16. Rc3 {[%clk 0:02:38.8]} 16...
g6 {[%clk 0:02:09.1]} 17. a3 {[%clk 0:02:38.8]} 17... a4 {[%clk 0:02:08.7]} 18.
b4 {[%clk 0:02:39]} 18... Nb3 {[%clk 0:02:08.7]} 19. c5 {[%clk 0:02:29.5]} 19...
Nd4 {[%clk 0:02:03.8]} 20. Qd2 {[%clk 0:02:27.8]} 20... Kg7 {[%clk 0:01:46.4]}
21. f4 {[%clk 0:02:23.5]} 21... f6 {[%clk 0:01:42.7]} 22. f5 {[%clk 0:02:20]}
22... c6 {[%clk 0:01:35.4]} 23. dxc6 {[%clk 0:02:14.9]} 23... dxc5 {[%clk
0:01:32]} 24. Qc1 {[%clk 0:01:39.7]} 24... bxc6 {[%clk 0:01:21]} 25. bxc5 {[%clk
0:01:37.1]} 25... Rb8 {[%clk 0:01:20.8]} 26. Kh2 {[%clk 0:01:26]} 26... Rb3
{[%clk 0:01:19.8]} 27. Rd1 {[%clk 0:01:22.8]} 27... Qa5 {[%clk 0:01:14.4]} 28.
Rc4 {[%clk 0:01:06.3]} 28... Rfb8 {[%clk 0:01:14]} 29. Rcxd4 {[%clk 0:00:58.7]}
29... exd4 {[%clk 0:01:07.9]} 30. e5 {[%clk 0:00:54.6]} 30... Rxg3 {[%clk
0:00:44.8]} 31. exf6+ {[%clk 0:00:50.2]} 31... Kxf6 {[%clk 0:00:45.7]} 32. Qf4
{[%clk 0:00:39.4]} 32... Rbb3 {[%clk 0:00:20.2]} 33. Rxd4 {[%clk 0:00:33.3]}
33... Qxc5 {[%clk 0:00:09.6]} 34. fxg6+ {[%clk 0:00:31.2]} 34... Kxg6 {[%clk
0:00:09.8]} 35. Rd6+ {[%clk 0:00:31.6]} 35... Qxd6 {[%clk 0:00:07.3]} 36. Qxd6+
{[%clk 0:00:32.5]} 36... Kg7 {[%clk 0:00:05.3]} 37. Qc7+ {[%clk 0:00:29.8]}
37... Kg8 {[%clk 0:00:05.2]} 38. Qxg3+ {[%clk 0:00:17.2]} 38... Rxg3 {[%clk
0:00:06.1]} 39. Kxg3 {[%clk 0:00:18.1]} 39... Kf7 {[%clk 0:00:06.4]} 40. Kf4
{[%clk 0:00:18.7]} 40... Kf6 {[%clk 0:00:06.6]} 41. Ke4 {[%clk 0:00:17.8]} 41...
Ke6 {[%clk 0:00:05.7]} 42. Kd4 {[%clk 0:00:12.1]} 42... Kd6 {[%clk 0:00:05.9]}
43. Kc4 {[%clk 0:00:11.1]} 43... c5 {[%clk 0:00:06.4]} 44. g4 {[%clk 0:00:08.9]}
44... h6 {[%clk 0:00:04]} 45. h4 {[%clk 0:00:09]} 45... Kc6 {[%clk 0:00:03.9]}
46. g5 {[%clk 0:00:09.2]} 46... hxg5 {[%clk 0:00:04]} 47. hxg5 {[%clk
0:00:10.1]} 47... Kd6 {[%clk 0:00:04.1]} 48. g6 {[%clk 0:00:10.6]} 48... Ke6
{[%clk 0:00:04.7]} 49. Kxc5 {[%clk 0:00:11.5]} 49... Kf6 {[%clk 0:00:05.3]} 50.
Kb4 {[%clk 0:00:12.4]} 50... Kxg6 {[%clk 0:00:05.8]} 51. Kxa4 {[%clk 0:00:13.3]}
51... Kf7 {[%clk 0:00:06.6]} 52. Kb5 {[%clk 0:00:14.2]} 52... Ke8 {[%clk
0:00:07.2]} 53. Kc6 {[%clk 0:00:14.9]} 53... Kd8 {[%clk 0:00:07.6]} 54. Kb7
{[%clk 0:00:15.8]} 54... Kd7 {[%clk 0:00:05.7]} 55. a4 {[%clk 0:00:16.7]} 1-0

[Event "Late-Titled-Tuesday-Blitz-April-23-2024"]
[Site "Chess.com"]
[Date "2024.04.23"]
[Round "7"]
[White "Good_Knight_Kiss"]
[Black "ansko1999"]
[Result "0-1"]
[WhiteElo "2446"]
[BlackElo "2598"]
[TimeControl "180+1"]
[EndTime "15:19:41 PDT"]
[Termination "ansko1999 won on time"]

1. e4 {[%clk 0:03:00.9]} 1... c5 {[%clk 0:03:00]} 2. Nf3 {[%clk 0:03:00.6]} 2...
Nf6 {[%clk 0:03:00.6]} 3. e5 {[%clk 0:02:59.9]} 3... Nd5 {[%clk 0:03:00.9]} 4.
d4 {[%clk 0:03:00.6]} 4... cxd4 {[%clk 0:02:59.4]} 5. Qxd4 {[%clk 0:03:01.5]}
5... e6 {[%clk 0:02:54.8]} 6. Bc4 {[%clk 0:03:01.1]} 6... Nc6 {[%clk 0:02:54.3]}
7. Qe4 {[%clk 0:03:01.1]} 7... f5 {[%clk 0:02:50.8]} 8. Qe2 {[%clk 0:03:00.7]}
8... Nb6 {[%clk 0:02:37.7]} 9. Bb3 {[%clk 0:03:00.6]} 9... Na5 {[%clk
0:02:28.2]} 10. Bg5 {[%clk 0:02:52.2]} 10... Qc7 {[%clk 0:02:21]} 11. O-O {[%clk
0:02:43.3]} 11... Bc5 {[%clk 0:02:00.5]} 12. Nc3 {[%clk 0:02:40.2]} 12... a6
{[%clk 0:01:54.3]} 13. Rad1 {[%clk 0:02:34.2]} 13... O-O {[%clk 0:01:53.1]} 14.
Be3 {[%clk 0:02:26.7]} 14... Bxe3 {[%clk 0:01:41.4]} 15. Qxe3 {[%clk 0:02:26.6]}
15... Nbc4 {[%clk 0:01:41.7]} 16. Qd4 {[%clk 0:02:15.6]} 16... Nxb2 {[%clk
0:01:35.9]} 17. Qd6 {[%clk 0:02:08.1]} 17... Qxd6 {[%clk 0:01:33]} 18. Rxd6
{[%clk 0:02:09]} 18... Nbc4 {[%clk 0:01:32.1]} 19. Rd4 {[%clk 0:02:09.1]} 19...
b5 {[%clk 0:01:27]} 20. a4 {[%clk 0:02:03.1]} 20... Nc6 {[%clk 0:01:20.9]} 21.
Rdd1 {[%clk 0:01:52.9]} 21... N4xe5 {[%clk 0:01:15.3]} 22. Nxe5 {[%clk 0:01:53]}
22... Nxe5 {[%clk 0:01:16.2]} 23. axb5 {[%clk 0:01:53.1]} 23... axb5 {[%clk
0:01:17.1]} 24. Nxb5 {[%clk 0:01:52]} 24... Ba6 {[%clk 0:01:16]} 25. Nc7 {[%clk
0:01:48.1]} 25... Bxf1 {[%clk 0:01:08.5]} 26. Nxa8 {[%clk 0:01:47.5]} 26... Be2
{[%clk 0:01:06.9]} 27. Ra1 {[%clk 0:01:41.4]} 27... Bc4 {[%clk 0:00:57.2]} 28.
f4 {[%clk 0:01:05.6]} 28... Bxb3 {[%clk 0:00:56.2]} 29. cxb3 {[%clk 0:01:06.5]}
29... Nd3 {[%clk 0:00:56.1]} 30. g3 {[%clk 0:01:06]} 30... Rb8 {[%clk
0:00:53.4]} 31. Ra3 {[%clk 0:00:58.3]} 31... Nc5 {[%clk 0:00:52]} 32. Kf2 {[%clk
0:00:35.2]} 32... Rxb3 {[%clk 0:00:44.4]} 33. Rxb3 {[%clk 0:00:33.5]} 33... Nxb3
{[%clk 0:00:45.3]} 34. Nb6 {[%clk 0:00:30.6]} 34... Nc5 {[%clk 0:00:39.6]} 35.
Ke3 {[%clk 0:00:30]} 35... Kf7 {[%clk 0:00:38]} 36. Kd4 {[%clk 0:00:30.1]} 36...
d6 {[%clk 0:00:35.4]} 37. Nc8 {[%clk 0:00:26]} 37... Ne4 {[%clk 0:00:34.9]} 38.
g4 {[%clk 0:00:23.5]} 38... h6 {[%clk 0:00:31.5]} 39. gxf5 {[%clk 0:00:20.5]}
39... exf5 {[%clk 0:00:32.4]} 40. Kd5 {[%clk 0:00:15.6]} 40... Kf6 {[%clk
0:00:30.7]} 41. Nb6 {[%clk 0:00:14.2]} 41... Kg6 {[%clk 0:00:25.6]} 42. Ke6
{[%clk 0:00:11.8]} 42... Nf2 {[%clk 0:00:13.4]} 43. Nd5 {[%clk 0:00:10.2]} 43...
Ng4 {[%clk 0:00:09.4]} 44. h3 {[%clk 0:00:09.9]} 44... Nf2 {[%clk 0:00:09.2]}
45. h4 {[%clk 0:00:07.6]} 45... Ne4 {[%clk 0:00:06.3]} 46. Ne3 {[%clk
0:00:04.7]} 46... Ng3 {[%clk 0:00:05.8]} 47. Kxd6 {[%clk 0:00:02.5]} 47... Kh5
{[%clk 0:00:06.1]} 48. Ke6 {[%clk 0:00:01.5]} 48... Kxh4 {[%clk 0:00:05.9]} 49.
Kf7 {[%clk 0:00:01.5]} 49... g5 {[%clk 0:00:04.3]} 0-1

[Event "Late-Titled-Tuesday-Blitz-April-23-2024"]
[Site "Chess.com"]
[Date "2024.04.23"]
[Round "7"]
[White "Flaccidmoves"]
[Black "lluiss"]
[Result "0-1"]
[WhiteElo "2391"]
[BlackElo "2152"]
[TimeControl "180+1"]
[EndTime "15:19:43 PDT"]
[Termination "lluiss won on time"]

1. Nf3 {[%clk 0:03:00.9]} 1... Nf6 {[%clk 0:02:59.3]} 2. b3 {[%clk 0:02:57.5]}
2... d6 {[%clk 0:02:56.8]} 3. Bb2 {[%clk 0:02:58]} 3... e5 {[%clk 0:02:57]} 4.
d3 {[%clk 0:02:55.8]} 4... Nc6 {[%clk 0:02:56.3]} 5. g3 {[%clk 0:02:55.1]} 5...
g6 {[%clk 0:02:56.2]} 6. Bg2 {[%clk 0:02:55]} 6... Bg7 {[%clk 0:02:56.8]} 7. O-O
{[%clk 0:02:55.3]} 7... O-O {[%clk 0:02:57.4]} 8. c4 {[%clk 0:02:54.1]} 8... h6
{[%clk 0:02:53]} 9. Nc3 {[%clk 0:02:53.1]} 9... Be6 {[%clk 0:02:52.7]} 10. Nd2
{[%clk 0:02:49.4]} 10... Qd7 {[%clk 0:02:50.9]} 11. Nd5 {[%clk 0:02:47.9]} 11...
Nh5 {[%clk 0:02:36.1]} 12. Qc2 {[%clk 0:02:19.2]} 12... Rab8 {[%clk 0:02:25]}
13. a3 {[%clk 0:02:13.5]} 13... Ne7 {[%clk 0:02:24.6]} 14. b4 {[%clk 0:02:08.7]}
14... c6 {[%clk 0:02:23.1]} 15. Nxe7+ {[%clk 0:02:08.1]} 15... Qxe7 {[%clk
0:02:24]} 16. c5 {[%clk 0:01:54.2]} 16... d5 {[%clk 0:02:18.7]} 17. Nf3 {[%clk
0:01:53.8]} 17... Bd7 {[%clk 0:02:10.5]} 18. d4 {[%clk 0:01:49.6]} 18... exd4
{[%clk 0:02:01]} 19. Bxd4 {[%clk 0:01:45.5]} 19... Bf5 {[%clk 0:01:59]} 20. Qb2
{[%clk 0:01:43.2]} 20... Be4 {[%clk 0:01:54.7]} 21. e3 {[%clk 0:01:38.6]} 21...
Bxd4 {[%clk 0:01:44.1]} 22. Nxd4 {[%clk 0:01:29.7]} 22... Bxg2 {[%clk
0:01:43.6]} 23. Kxg2 {[%clk 0:01:30.6]} 23... Nf6 {[%clk 0:01:41]} 24. Rac1
{[%clk 0:01:21.2]} 24... a6 {[%clk 0:01:37.7]} 25. Rfd1 {[%clk 0:01:18.2]} 25...
h5 {[%clk 0:01:36.9]} 26. a4 {[%clk 0:01:11.1]} 26... h4 {[%clk 0:01:31]} 27. b5
{[%clk 0:01:08.3]} 27... axb5 {[%clk 0:01:29.5]} 28. axb5 {[%clk 0:01:07.6]}
28... Qe4+ {[%clk 0:01:29.5]} 29. f3 {[%clk 0:00:25.4]} 29... Qxe3 {[%clk
0:01:16.1]} 30. Re1 {[%clk 0:00:25.5]} 30... Qg5 {[%clk 0:01:06.1]} 31. bxc6
{[%clk 0:00:25.1]} 31... bxc6 {[%clk 0:01:05.4]} 32. Qc3 {[%clk 0:00:23.6]}
32... hxg3 {[%clk 0:00:59]} 33. hxg3 {[%clk 0:00:23.2]} 33... Nh5 {[%clk
0:00:59.1]} 34. g4 {[%clk 0:00:15.2]} 34... Nf4+ {[%clk 0:00:52.3]} 35. Kf2
{[%clk 0:00:15.6]} 35... Rbe8 {[%clk 0:00:42.2]} 36. Rh1 {[%clk 0:00:14.9]}
36... Qf6 {[%clk 0:00:31.5]} 37. g5 {[%clk 0:00:14]} 37... Qg7 {[%clk
0:00:26.4]} 38. Rce1 {[%clk 0:00:12.3]} 38... Ne6 {[%clk 0:00:24.2]} 39. Ne2
{[%clk 0:00:09.8]} 39... Qxc3 {[%clk 0:00:22.5]} 40. Nxc3 {[%clk 0:00:10.7]}
40... Nxg5 {[%clk 0:00:21.3]} 41. Na4 {[%clk 0:00:09.4]} 41... Ne6 {[%clk
0:00:18.5]} 42. Rb1 {[%clk 0:00:08.9]} 42... Ra8 {[%clk 0:00:16.8]} 43. Nb6
{[%clk 0:00:07.8]} 43... Ra2+ {[%clk 0:00:16.9]} 44. Kg3 {[%clk 0:00:07.6]}
44... Nxc5 {[%clk 0:00:16.9]} 45. Rbc1 {[%clk 0:00:07.4]} 45... Ne6 {[%clk
0:00:13]} 46. Rxc6 {[%clk 0:00:07]} 46... d4 {[%clk 0:00:12.5]} 47. Rd6 {[%clk
0:00:07.1]} 47... Ra6 {[%clk 0:00:10.5]} 48. Rb1 {[%clk 0:00:05.7]} 48... Rb8
{[%clk 0:00:10.1]} 49. Kf2 {[%clk 0:00:04.6]} 49... d3 {[%clk 0:00:10]} 50. Ke3
{[%clk 0:00:04.2]} 50... Nc5 {[%clk 0:00:10.2]} 51. Rc1 {[%clk 0:00:02.4]} 51...
Ne6 {[%clk 0:00:08.3]} 0-1